bitfinex-derivatives/quotes_SOLF0:USTF0_20250215
["timestamp","ask_amount","ask_price","bid_price","bid_amount"]
[1739634486331,0.03444719,194.4,194.36,10.69508691]
[1739634486532,9.17424107,194.4,194.36,1.55529303]
[1739634486733,14.31754107,194.4,194.36,1.55529303]
[1739634486931,14.31754107,194.4,194.36,0.03329303]
[1739634487331,9.13979388,194.38,194.36,0.03329303]
[1739634487933,5.144,194.37,194.36,0.03329303]
[1739634489031,9.13979388,194.38,194.36,0.03329303]
[1739634490035,0.03444719,194.4,194.36,0.03329303]
[1739634490336,0.03444719,194.4,194.36,9.17308691]
[1739634490638,0.03444719,194.4,194.37,5.1438]
[1739634491230,0.03444719,194.4,194.36,9.17308691]
[1739634491436,0.03444719,194.4,194.38,5.1437]
[1739634492431,9.13979388,194.44,194.38,9.13979388]
[1739634492733,191.0,194.47,194.4,9.13979388]
[1739634493036,9.13979388,194.48,194.4,9.13979388]
[1739634493237,14.28089388,194.48,194.42,9.13979388]
[1739634493727,0.03405492,194.47,194.43,0.03874834]
[1739634496133,0.03405492,194.47,194.43,5.18114834]
[1739634496334,0.03405492,194.47,194.43,0.03874834]
[1739634496531,0.03405492,194.47,194.44,9.13979388]
[1739634496732,0.03405492,194.47,194.45,5.1419]
[1739634497832,0.03405492,194.47,194.46,5.1416]
[1739634498235,9.13979388,194.5,194.44,9.13979388]
[1739634498434,9.13979388,194.5,194.46,5.1414]
[1739634498637,9.13979388,194.5,194.44,9.13979388]
[1739634499441,0.03643007,194.49,194.47,5.1413]
[1739634501035,0.03643007,194.49,194.45,5.1418]
[1739634501837,0.03643007,194.49,194.43,0.03874834]
[1739634501838,9.13979388,194.46,194.43,0.03874834]
[1739634502443,9.13979388,194.46,194.43,5.18114834]
[1739634502837,14.28099388,194.48,194.44,5.1421]
[1739634503941,9.13979388,194.48,194.45,5.1418]
[1739634505645,9.13979388,194.48,194.43,0.03874834]
[1739634505846,9.13979388,194.46,194.43,0.03874834]
[1739634506039,9.13979388,194.44,194.43,0.03874834]
[1739634506238,14.28199388,194.44,194.43,0.03874834]
[1739634508243,5.1432,194.41,194.33,1.6339]
[1739634508541,9.13979388,194.38,194.35,5.1443]
[1739634508746,9.13979388,194.38,194.33,1.6339]
[1739634509342,0.03284784,194.37,194.34,0.03948167]
[1739634509542,9.13979388,194.36,194.34,0.03948167]
[1739634516050,5.1445,194.35,194.34,0.03948167]
[1739634516250,0.03284784,194.37,194.34,0.03948167]
[1739634518053,9.13979388,194.36,194.34,0.03948167]
[1739634519056,14.28409388,194.36,194.34,0.03948167]
[1739634519556,9.13979388,194.36,194.34,0.03948167]
[1739634520352,5.1445,194.35,194.34,0.03948167]
[1739634527649,14.28409388,194.36,194.34,0.03948167]
[1739634530356,5.1445,194.35,194.34,0.03948167]
[1739634533263,9.13979388,194.36,194.24,9.13979388]
[1739634533459,9.13979388,194.28,194.23,4.7894]
[1739634533663,9.13979388,194.28,194.25,5.1471]
[1739634534563,9.17529313,194.28,194.25,5.18055767]
[1739634535262,0.03549925,194.28,194.27,5.1467]
[1739634535465,0.03549925,194.28,194.25,0.03345767]
[1739634535664,0.03549925,194.28,194.27,5.1467]
[1739634536966,9.13979388,194.32,194.31,5.1455]
[1739634537163,200.13979388,194.36,194.3,9.13979388]
[1739634537665,200.13979388,194.36,194.32,5.1451]
[1739634538067,200.17768499,194.36,194.32,5.18238924]
[1739634538269,200.17768499,194.36,194.32,0.03728924]
[1739634538667,205.32198499,194.36,194.32,0.03728924]
[1739634539568,5.1446,194.35,194.32,0.03728924]
[1739634540078,200.17768499,194.36,194.32,0.03728924]
[1739634540370,205.32198499,194.36,194.32,0.03728924]
[1739634541071,9.17768499,194.36,194.32,0.03728924]
[1739634541475,9.13979388,194.34,194.32,0.03728924]
[1739634541676,5.1451,194.33,194.32,0.03728924]
[1739634542477,14.28459388,194.34,194.32,0.03728924]
[1739634543475,5.1451,194.33,194.32,0.03728924]
[1739634543673,9.13979388,194.34,194.23,4.7894]
[1739634543872,9.13979388,194.27,194.23,4.7894]
[1739634544079,9.13979388,194.27,194.25,5.1472]
[1739634544482,9.13979388,194.27,194.23,4.7894]
[1739634544681,9.13979388,194.29,194.26,5.1469]
[1739634544881,0.03493445,194.27,194.26,5.1469]
[1739634546777,9.13979388,194.33,194.25,9.13979388]
[1739634546978,9.13979388,194.33,194.27,9.13979388]
[1739634547980,0.03445715,194.32,194.28,0.03477447]
[1739634548281,0.03445715,194.32,194.3,5.1457]
[1739634548477,0.03445715,194.32,194.28,0.03477447]
[1739634548679,0.03445715,194.32,194.29,5.1459]
[1739634548875,0.03445715,194.32,194.28,0.03477447]
[1739634549579,0.03445715,194.32,194.29,9.13979388]
[1739634549878,0.03445715,194.32,194.3,1.6506]
[1739634551179,0.03445715,194.32,194.3,6.7965]
[1739634551478,0.03445715,194.32,194.3,1.6506]
[1739634552282,0.03445715,194.32,194.31,5.1456]
[1739634552583,9.13979388,194.37,194.3,1.6506]
[1739634553084,5.1443,194.36,194.32,5.1452]
[1739634553583,5.17948087,194.36,194.32,5.17766919]
[1739634553784,0.03518087,194.36,194.32,5.17766919]
[1739634554888,5.17958087,194.36,194.32,5.17766919]
[1739634555586,0.03518087,194.36,194.32,5.17766919]
[1739634555782,0.03518087,194.36,194.32,0.03246919]
[1739634555981,0.03518087,194.36,194.35,5.1445]
[1739634556581,0.03518087,194.36,194.32,0.03246919]
[1739634557283,0.03518087,194.36,194.33,5.145]
[1739634557489,5.17948087,194.36,194.32,0.03246919]
[1739634557686,5.17948087,194.36,194.32,5.17756919]
[1739634558788,5.17948087,194.36,194.32,0.03246919]
[1739634558984,5.17948087,194.36,194.33,5.145]
[1739634559583,9.13979388,194.35,194.32,0.03246919]
[1739634559785,9.13979388,194.33,194.32,0.03246919]
[1739634562196,9.13979388,194.33,194.32,5.17776919]
[1739634563092,9.13979388,194.35,194.32,5.17776919]
[1739634565286,9.13979388,194.35,194.32,0.03246919]
[1739634565490,14.28439388,194.35,194.32,0.03246919]
[1739634566795,14.28439388,194.35,194.32,5.17776919]
[1739634566993,9.13979388,194.35,194.32,5.17776919]
[1739634567196,0.03518087,194.36,194.32,0.03246919]
[1739634567397,0.03518087,194.36,194.33,9.13979388]
[1739634568697,0.03518087,194.36,194.32,0.03246919]
[1739634569694,9.13979388,194.35,194.32,0.03246919]
[1739634570198,9.13979388,194.33,194.18,65.91011967]
[1739634570398,9.13979388,194.24,194.21,3.1639]
[1739634570593,9.13979388,194.24,194.23,5.1477]
[1739634571501,0.03552963,194.25,194.23,5.1477]
[1739634571999,0.03552963,194.25,194.24,5.1475]
[1739634574701,14.31593422,194.34,194.22,14.35327444]
[1739634575004,19.46073422,194.34,194.22,14.31593422]
[1739634575209,85.60826757,194.41,194.34,5.1448]
[1739634575800,5.1437,194.38,194.36,0.03611857]
[1739634576202,0.03899611,194.39,194.36,0.03611857]
[1739634576803,5.18249611,194.39,194.36,0.03611857]
[1739634577001,0.03899611,194.39,194.36,0.03611857]
[1739634578807,0.03899611,194.39,194.37,5.144]
[1739634579007,0.03899611,194.39,194.36,0.03611857]
[1739634579797,0.03899611,194.39,194.36,1.66461857]
[1739634580002,0.03899611,194.39,194.38,5.1437]
[1739634580201,14.31593422,194.47,194.37,1.6275]
[1739634581205,5.1422,194.44,194.4,5.1432]
[1739634581406,5.1422,194.44,194.4,5.18075637]
[1739634581804,5.1422,194.44,194.4,0.03755637]
[1739634582309,14.31593422,194.47,194.4,0.03755637]
[1739634582508,14.31593422,194.44,194.4,0.03755637]
[1739634584211,14.31593422,194.47,194.4,0.03755637]
[1739634584409,14.31593422,194.5,194.4,0.03755637]
[1739634584910,14.31593422,194.5,194.43,5.1424]
[1739634585406,14.31593422,194.5,194.45,5.17601189]
[1739634585811,14.31593422,194.5,194.45,0.03411189]
[1739634586907,5.1411,194.48,194.45,0.03411189]
[1739634588113,5.1414,194.47,194.45,0.03411189]
[1739634588913,5.1411,194.48,194.45,0.03411189]
[1739634589513,14.31593422,194.53,194.45,0.03411189]
[1739634589810,14.31593422,194.5,194.38,14.31593422]
[1739634590010,14.31593422,194.5,194.47,0.03956359]
[1739634590217,14.31593422,194.5,194.39,1.662]
[1739634590416,14.31593422,194.5,194.47,0.03358504]
[1739634590717,14.31593422,194.5,194.47,0.03536446]
[1739634591421,5.1408,194.49,194.47,0.03536446]
[1739634591616,14.31593422,194.5,194.47,0.03536446]
[1739634591919,5.1411,194.48,194.47,0.03536446]
[1739634592721,28.63186844,194.5,194.2,192.99182598]
[1739634592918,5.1428,194.42,194.33,1.5504]
[1739634593419,5.1432,194.41,194.33,1.5504]
[1739634593922,0.03713281,194.4,194.37,0.03567482]
[1739634594720,5.18053281,194.4,194.37,0.03567482]
[1739634595217,0.03713281,194.4,194.37,0.03567482]
[1739634597414,0.03713281,194.4,194.38,5.1435]
[1739634597814,0.03713281,194.4,194.37,0.03567482]
[1739634598215,0.03713281,194.4,194.38,5.1437]
[1739634599924,0.03713281,194.4,194.39,5.1435]
[1739634600519,0.03713281,194.4,194.37,5.17947482]
[1739634600720,0.03713281,194.4,194.37,0.03567482]
[1739634600925,14.31593422,194.49,194.37,0.03567482]
[1739634601119,5.1418,194.46,194.42,5.1426]
[1739634601715,14.31593422,194.49,194.38,14.31593422]
[1739634601920,14.31593422,194.49,194.36,1.6285]
[1739634602221,10.29656806,194.55,194.42,0.03352895]
[1739634602222,14.31593422,194.46,194.42,0.03352895]
[1739634602418,5.1424,194.43,194.39,5.1435]
[1739634602619,14.31593422,194.46,194.42,0.03564941]
[1739634602822,14.31593422,194.46,194.36,1.6285]
[1739634603023,14.31593422,194.43,194.36,1.6285]
[1739634603225,14.31593422,194.43,194.39,0.03534323]
[1739634603426,5.1432,194.4,194.39,0.03534323]
[1739634605121,5.1429,194.42,194.39,0.03534323]
[1739634605731,14.31593422,194.46,194.39,0.03534323]
[1739634606128,5.1429,194.42,194.37,5.1439]
[1739634606330,5.1429,194.42,194.41,0.03823217]
[1739634607931,5.1423,194.44,194.41,0.03823217]
[1739634608133,14.31593422,194.49,194.41,0.03823217]
[1739634608334,205.31593422,194.52,194.41,0.03823217]
[1739634608539,5.1406,194.5,194.45,5.1417]
[1739634608727,205.31593422,194.52,194.41,3.095]
[1739634608728,191.0,194.52,194.41,3.095]
[1739634609035,191.0,194.52,194.46,0.03606597]
[1739634610431,205.31593422,194.52,194.46,0.03606597]
[1739634610625,5.1406,194.5,194.46,5.17766597]
[1739634611632,5.1403,194.51,194.46,5.17766597]
[1739634613125,14.31593422,194.52,194.46,0.03606597]
[1739634613530,14.31593422,194.55,194.46,0.03606597]
[1739634613834,5.1398,194.53,194.48,5.1411]
[1739634614136,14.31593422,194.55,194.46,0.03606597]
[1739634614335,5.1408,194.5,194.46,0.03606597]
[1739634614730,14.31593422,194.52,194.46,0.03606597]
[1739634614933,14.31593422,194.52,194.48,5.141]
[1739634615232,5.1398,194.53,194.46,0.03606597]
[1739634615630,14.31593422,194.55,194.46,0.03606597]
[1739634615826,19.45543422,194.55,194.46,0.03606597]
[1739634616332,19.45543422,194.55,194.5,5.1405]
[1739634616835,19.45543422,194.55,194.51,0.03600151]
[1739634617036,5.1389,194.57,194.51,0.03600151]
[1739634617631,5.1389,194.57,194.52,5.14]
[1739634617825,5.139,194.56,194.52,5.14]
[1739634618230,14.31593422,194.58,194.53,5.1396]
[1739634618428,19.45443422,194.58,194.51,0.03600151]
[1739634618827,19.45443422,194.58,194.53,5.1398]
[1739634619233,14.31593422,194.58,194.51,0.03600151]
[1739634619437,14.31593422,194.58,194.52,5.1399]
[1739634620948,14.31593422,194.58,194.51,5.17630151]
[1739634621234,5.139,194.56,194.51,0.03600151]
[1739634621434,14.31593422,194.58,194.51,0.03600151]
[1739634622438,14.31593422,194.55,194.51,0.03600151]
[1739634623137,19.45593422,194.52,194.51,0.03600151]
[1739634624535,5.1412,194.48,194.41,3.095]
[1739634624841,14.31593422,194.49,194.41,3.095]
[1739634625937,14.31593422,194.49,194.43,0.03732913]
[1739634625938,0.03429563,194.47,194.43,0.03732913]
[1739634627839,0.03429563,194.47,194.44,5.1421]
[1739634628039,0.03429563,194.47,194.43,0.03732913]
[1739634628436,0.03429563,194.47,194.44,5.1421]
[1739634628736,0.03429563,194.47,194.43,0.03732913]
[1739634629238,0.03429563,194.47,194.44,5.1421]
[1739634629534,0.03429563,194.47,194.43,0.03732913]
[1739634630939,5.17569563,194.47,194.43,5.17972913]
[1739634631238,0.03429563,194.47,194.43,0.03732913]
[1739634631639,5.17589563,194.47,194.43,0.03732913]
[1739634632339,5.17589563,194.47,194.43,5.17972913]
[1739634632734,0.03429563,194.47,194.43,0.03732913]
[1739634632935,0.03429563,194.47,194.45,5.1418]
[1739634633338,0.03429563,194.47,194.43,0.03732913]
[1739634633836,5.1418,194.46,194.43,0.03732913]
[1739634634242,0.03429563,194.47,194.43,0.03732913]
[1739634634438,0.03429563,194.47,194.44,5.1421]
[1739634634643,0.03429563,194.47,194.43,0.03732913]
[1739634634846,5.1416,194.46,194.43,0.03732913]
[1739634635529,0.03429563,194.47,194.44,5.1421]
[1739634637739,0.03429563,194.47,194.43,0.03732913]
[1739634637942,0.03429563,194.47,194.45,5.1419]
[1739634638238,0.03429563,194.47,194.43,0.03732913]
[1739634638941,0.03429563,194.47,194.44,5.1421]
[1739634641443,0.03429563,194.47,194.43,0.03732913]
[1739634641646,0.03429563,194.47,194.45,5.1416]
[1739634642546,0.03429563,194.47,194.44,5.1421]
[1739634643139,0.03429563,194.47,194.45,5.1418]
[1739634643945,0.03429563,194.47,194.43,5.17952913]
[1739634644545,0.03429563,194.47,194.43,0.03732913]
[1739634644746,0.03429563,194.47,194.44,5.142]
[1739634644946,5.17569563,194.47,194.43,0.03732913]
[1739634645652,14.28469739,194.46,194.43,0.03732913]
[1739634646149,9.14289739,194.46,194.43,0.03732913]
[1739634646648,9.14289739,194.46,194.44,5.1421]
[1739634650849,0.03429563,194.47,194.43,0.03732913]
[1739634651047,0.03429563,194.47,194.45,5.1417]
[1739634653655,0.03429563,194.47,194.44,5.1421]
[1739634654348,5.17569563,194.47,194.43,5.17972913]
[1739634654555,9.14289739,194.46,194.43,5.17972913]
[1739634654755,9.14289739,194.46,194.43,0.03732913]
[1739634654950,0.03429563,194.47,194.46,5.1416]
[1739634656154,0.03429563,194.47,194.45,5.1419]
[1739634657452,0.03429563,194.47,194.43,0.03732913]
[1739634657655,0.03429563,194.47,194.3,9.14289739]
[1739634657656,9.14289739,194.44,194.3,9.14289739]
[1739634657855,9.14289739,194.38,194.33,3.1374]
[1739634658053,9.14289739,194.38,194.37,5.144]
[1739634658654,9.14289739,194.38,194.33,3.1374]
[1739634658854,9.14289739,194.38,194.36,0.03834564]
[1739634660057,9.14289739,194.38,194.37,5.144]
[1739634661160,0.0364195,194.39,194.38,5.1437]
[1739634663560,9.14289739,194.42,194.41,5.143]
[1739634663765,9.14289739,194.46,194.4,9.14289739]
[1739634664052,9.14289739,194.48,194.41,1.6434]
[1739634664761,0.03838641,194.46,194.44,5.1422]
[1739634665663,0.03838641,194.46,194.43,0.03639056]
[1739634665856,9.1812838,194.46,194.43,0.03639056]
[1739634666160,9.14289739,194.44,194.43,0.03639056]
[1739634667258,9.14289739,194.44,194.32,1.5434]
[1739634667259,9.14289739,194.44,194.33,1.6687]
[1739634667458,9.14289739,194.39,194.33,1.6687]
[1739634667657,9.14289739,194.41,194.36,9.14289739]
[1739634667959,9.14289739,194.43,194.36,9.14289739]
[1739634668463,0.03340677,194.41,194.38,9.18153813]
[1739634668658,9.14289739,194.45,194.38,9.14289739]
[1739634668853,0.03821403,194.41,194.39,1.5823]
[1739634669060,0.03821403,194.41,194.4,5.143]
[1739634670962,14.28695518,194.48,194.43,5.1423]
[1739634671363,5.1414,194.47,194.43,5.1423]
[1739634671663,14.28695518,194.48,194.45,5.1418]
[1739634671863,205.28695518,194.51,194.4,1.5556]
[1739634672057,14.28695518,194.51,194.44,0.03687833]
[1739634672264,0.03242885,194.47,194.46,5.1416]
[1739634672862,19.42665518,194.54,194.44,0.03687833]
[1739634673060,19.42665518,194.54,194.5,5.1405]
[1739634674160,19.42665518,194.54,194.5,0.03915306]
[1739634676063,14.28695518,194.54,194.5,0.03915306]
[1739634676370,14.28695518,194.51,194.5,0.03915306]
[1739634676766,19.42725518,194.51,194.5,0.03915306]
[1739634676967,14.28695518,194.51,194.41,1.5513]
[1739634677167,14.28695518,194.48,194.4,1.5556]
[1739634677367,14.28695518,194.45,194.4,1.5556]
[1739634678069,0.0372883,194.44,194.41,0.03283999]
[1739634678370,0.0372883,194.44,194.42,5.1425]
[1739634679167,0.0372883,194.44,194.41,0.03283999]
[1739634679470,0.0372883,194.44,194.43,5.1424]
[1739634680069,0.0372883,194.44,194.41,0.03283999]
[1739634680979,0.0372883,194.44,194.42,5.1427]
[1739634681179,0.0372883,194.44,194.41,0.03283999]
[1739634681579,0.0372883,194.44,194.43,5.1424]
[1739634684874,0.0372883,194.44,194.42,5.1427]
[1739634685179,0.0372883,194.44,194.41,0.03283999]
[1739634685776,0.0372883,194.44,194.43,5.1424]
[1739634691777,0.0372883,194.44,194.41,0.03283999]
[1739634692180,0.0372883,194.44,194.41,5.17553999]
[1739634696286,0.0372883,194.44,194.41,0.03283999]
[1739634697294,5.1425,194.43,194.41,0.03283999]
[1739634697488,0.0372883,194.44,194.41,0.03283999]
[1739634697790,9.14600892,194.43,194.41,0.03283999]
[1739634698391,9.14600892,194.43,194.41,5.17573999]
[1739634698585,0.0372883,194.44,194.41,0.03283999]
[1739634700190,0.0372883,194.44,194.43,5.1424]
[1739634701190,0.0372883,194.44,194.41,0.03283999]
[1739634701390,0.0372883,194.44,194.43,5.1424]
[1739634703694,9.14600892,194.49,194.47,5.1413]
[1739634704394,9.14600892,194.49,194.46,5.1416]
[1739634704790,9.14600892,194.49,194.46,5.17735975]
[1739634705492,14.28690892,194.49,194.46,5.17735975]
[1739634706795,9.14600892,194.51,194.46,0.03575975]
[1739634707397,9.14600892,194.51,194.46,9.18176867]
[1739634708099,9.14600892,194.51,194.49,5.1406]
[1739634708695,9.14600892,194.51,194.46,9.18176867]
[1739634709098,9.14600892,194.51,194.46,0.03575975]
[1739634712099,9.14600892,194.51,194.49,5.1406]
[1739634712898,9.14600892,194.51,194.46,0.03575975]
[1739634714201,9.14600892,194.51,194.5,5.1406]
[1739634718801,9.14600892,194.51,194.46,0.03575975]
[1739634720003,9.14600892,194.51,194.5,5.1406]
[1739634720902,9.14600892,194.51,194.46,0.03575975]
[1739634721103,9.14600892,194.51,194.49,5.1408]
[1739634722601,9.14600892,194.51,194.46,0.03575975]
[1739634722901,9.14600892,194.49,194.46,0.03575975]
[1739634723101,9.14600892,194.49,194.43,1.6648]
[1739634723304,9.14600892,194.49,194.48,5.1411]
[1739634724199,9.14600892,194.49,194.47,5.1413]
[1739634725597,9.14600892,194.49,194.46,0.03681961]
[1739634725802,5.1401,194.52,194.46,0.03681961]
[1739634725803,9.14600892,194.51,194.46,0.03681961]
[1739634725999,9.14600892,194.53,194.46,9.14600892]
[1739634726203,9.14600892,194.53,194.47,0.03745196]
[1739634726902,9.14600892,194.51,194.48,5.1411]
[1739634727105,9.14600892,194.49,194.43,1.6648]
[1739634727294,9.14600892,194.49,194.48,0.03938522]
[1739634727495,9.14600892,194.49,194.45,5.1417]
[1739634727699,9.14600892,194.49,194.47,0.03339749]
[1739634730407,9.14600892,194.49,194.47,5.17469749]
[1739634731104,9.14600892,194.49,194.48,5.1411]
[1739634731898,9.14600892,194.53,194.47,0.03339749]
[1739634732097,9.14600892,194.53,194.46,9.14600892]
[1739634732301,9.14600892,194.53,194.48,0.03754525]
[1739634733404,9.14600892,194.53,194.5,5.1404]
[1739634736805,9.14600892,194.53,194.48,0.03754525]
[1739634737005,9.14600892,194.51,194.48,0.03754525]
[1739634737407,9.14600892,194.49,194.48,0.03754525]
[1739634739511,9.14600892,194.49,194.48,5.17864525]
[1739634745213,9.14600892,194.49,194.48,0.03754525]
[1739634746617,9.14600892,194.51,194.48,0.03754525]
[1739634747117,9.14600892,194.51,194.49,5.1408]
[1739634749216,9.14600892,194.51,194.48,0.03754525]
[1739634749812,9.14600892,194.51,194.48,5.17854525]
[1739634752722,9.14600892,194.51,194.48,0.03754525]
[1739634753021,9.14600892,194.51,194.49,5.1408]
[1739634753526,9.14600892,194.51,194.48,5.17854525]
[1739634754226,14.28640892,194.51,194.48,5.17854525]
[1739634757230,5.1407,194.5,194.48,0.03754525]
[1739634757429,9.14600892,194.49,194.48,0.03754525]
[1739634758825,5.1407,194.5,194.48,0.03754525]
[1739634759730,9.14600892,194.51,194.48,0.03754525]
[1739634759925,14.28680892,194.49,194.48,0.03754525]
[1739634760128,9.14600892,194.49,194.48,0.03754525]
[1739634765735,5.1407,194.5,194.48,0.03754525]
[1739634765931,9.14600892,194.51,194.48,0.03754525]
[1739634766235,14.28640892,194.51,194.48,0.03754525]
[1739634770938,14.28640892,194.51,194.48,5.17864525]
[1739634771139,14.28640892,194.51,194.48,0.03754525]
[1739634772140,5.1406,194.5,194.48,0.03754525]
[1739634773441,5.1408,194.49,194.48,0.03754525]
[1739634773940,5.1406,194.5,194.48,0.03754525]
[1739634776641,9.14600892,194.51,194.48,0.03754525]
[1739634776845,5.1402,194.52,194.48,0.03754525]
[1739634777139,9.14600892,194.53,194.44,9.14600892]
[1739634777345,9.14600892,194.53,194.48,5.17674583]
[1739634777346,5.1401,194.52,194.48,5.17674583]
[1739634777945,14.28590892,194.53,194.49,5.1408]
[1739634778547,5.1401,194.52,194.48,0.03584583]
[1739634778737,5.1401,194.52,194.48,5.17694583]
[1739634779350,5.1401,194.52,194.48,0.03584583]
[1739634779645,5.1401,194.52,194.49,5.1408]
[1739634781752,14.28630892,194.51,194.48,0.03584583]
[1739634782849,9.14600892,194.49,194.48,0.03584583]
[1739634783149,9.14600892,194.49,194.43,1.6648]
[1739634783353,9.14600892,194.49,194.47,0.03821798]
[1739634785643,5.1411,194.48,194.47,0.03821798]
[1739634788852,9.14600892,194.49,194.37,3.1883]
[1739634789049,9.14600892,194.4,194.37,3.1883]
[1739634789653,9.14600892,194.4,194.38,5.1437]
[1739634790453,0.03273334,194.41,194.39,5.1434]
[1739634791854,0.03273334,194.41,194.38,5.1437]
[1739634793258,0.03273334,194.41,194.39,5.1434]
[1739634793758,0.03273334,194.41,194.38,9.14600892]
[1739634794060,0.03273334,194.41,194.4,5.1432]
[1739634794358,0.03273334,194.41,194.38,9.14600892]
[1739634794560,0.03273334,194.41,194.38,5.1437]
[1739634794755,0.03273334,194.41,194.37,3.22669444]
[1739634796062,0.03273334,194.41,194.39,5.1435]
[1739634798864,0.03273334,194.41,194.37,3.22669444]
[1739634799163,0.03273334,194.41,194.38,5.1435]
[1739634799563,0.03273334,194.41,194.37,3.22669444]
[1739634799766,0.03273334,194.41,194.38,5.1437]
[1739634799966,9.14600892,194.4,194.37,0.03839444]
[1739634801059,14.28940892,194.4,194.37,0.03839444]
[1739634801257,9.14600892,194.4,194.37,0.03839444]
[1739634802067,9.14600892,194.4,194.37,5.18239444]
[1739634802667,14.28930892,194.4,194.37,0.03839444]
[1739634804168,14.28930892,194.4,194.37,5.18239444]
[1739634807165,5.1436,194.39,194.37,0.03839444]
[1739634807466,9.14600892,194.38,194.37,0.03839444]
[1739634808166,14.28970892,194.38,194.37,0.03839444]
[1739634810064,9.14600892,194.38,194.37,0.03839444]
[1739634816373,14.28970892,194.38,194.37,0.03839444]
[1739634821375,9.14600892,194.38,194.37,0.03839444]
[1739634822676,14.28970892,194.38,194.37,0.03839444]
[1739634829279,9.14600892,194.38,194.37,0.03839444]
[1739634833886,9.14600892,194.38,194.37,5.18239444]
[1739634839695,9.14600892,194.38,194.37,0.03839444]
[1739634841195,9.14600892,194.38,194.37,5.18239444]
[1739634842090,0.03273334,194.41,194.4,5.1432]
[1739634843092,9.14600892,194.44,194.38,10.81360892]
[1739634843299,9.14600892,194.44,194.38,12.36210892]
[1739634843996,9.14600892,194.48,194.42,9.14600892]
[1739634844199,9.14600892,194.48,194.45,5.1416]
[1739634844394,0.02130721,194.47,194.45,5.1416]
[1739634845300,0.02130721,194.47,194.43,0.03666884]
[1739634845499,0.02130721,194.47,194.46,5.1416]
[1739634845695,9.14600892,194.52,194.44,9.14600892]
[1739634845902,9.14600892,194.52,194.45,1.567]
[1739634846101,9.14600892,194.52,194.49,5.1406]
[1739634846799,9.14600892,194.5,194.49,5.1801655]
[1739634850410,9.14600892,194.5,194.49,0.0395655]
[1739634853012,9.14600892,194.5,194.49,5.1803655]
[1739634855213,9.14600892,194.52,194.5,5.1405]
[1739634857009,9.14600892,194.52,194.49,5.1803655]
[1739634857214,9.14600892,194.52,194.49,0.0395655]
[1739634857513,14.28610892,194.52,194.49,0.0395655]
[1739634858519,9.14600892,194.52,194.49,0.0395655]
[1739634859217,9.14600892,194.52,194.5,5.1406]
[1739634861116,9.14600892,194.52,194.49,0.0395655]
[1739634861317,14.28610892,194.52,194.49,0.0395655]
[1739634861622,9.14600892,194.5,194.49,0.0395655]
[1739634863717,14.28660892,194.5,194.49,0.0395655]
[1739634864324,9.14600892,194.5,194.43,5.1423]
[1739634864524,9.14600892,194.44,194.38,3.0595]
[1739634864722,9.14600892,194.41,194.38,3.0595]
[1739634864920,9.14600892,194.41,194.38,8.2032]
[1739634865523,9.14600892,194.39,194.38,0.03835791]
[1739634866223,14.28950892,194.39,194.38,0.03835791]
[1739634871728,9.14600892,194.39,194.38,0.03835791]
[1739634874026,14.28950892,194.39,194.38,0.03835791]
[1739634875034,9.14600892,194.39,194.38,0.03835791]
[1739634876435,14.28950892,194.39,194.38,0.03835791]
[1739634882337,9.14600892,194.39,194.32,1.517]
[1739634882537,9.14600892,194.34,194.28,1.5968]
[1739634882733,9.14600892,194.32,194.28,1.5968]
[1739634883540,9.14600892,194.32,194.28,1.63109535]
[1739634883541,9.18141059,194.32,194.28,1.63109535]
[1739634884136,9.18141059,194.32,194.29,5.1459]
[1739634885945,14.32681059,194.32,194.28,1.63109535]
[1739634886346,9.18141059,194.32,194.28,1.63109535]
[1739634886647,5.1457,194.31,194.28,1.63109535]
[1739634886944,5.1457,194.31,194.28,6.77749535]
[1739634887141,5.1457,194.31,194.28,1.63109535]
[1739634887443,14.29190892,194.3,194.28,0.03429535]
[1739634888243,9.14600892,194.3,194.28,0.03429535]
[1739634889241,14.29210892,194.3,194.28,0.03429535]
[1739634889850,9.14600892,194.3,194.28,0.03429535]
[1739634893648,14.29190892,194.3,194.28,0.03429535]
[1739634894353,9.14600892,194.3,194.28,5.18059535]
[1739634896451,9.18141059,194.32,194.28,0.03429535]
[1739634896646,9.18141059,194.32,194.29,5.1461]
[1739634897351,9.18141059,194.32,194.3,5.1459]
[1739634898444,0.03540167,194.32,194.31,5.1456]
[1739634898640,200.14600892,194.38,194.3,9.14600892]
[1739634898853,200.14600892,194.38,194.31,1.5498]
[1739634899050,205.28980892,194.38,194.33,5.1448]
[1739634899752,14.28980892,194.38,194.33,5.145]
[1739634899952,0.03393165,194.37,194.34,0.0383145]
[1739634900555,9.14600892,194.36,194.34,0.0383145]
[1739634902454,5.1454,194.32,194.29,1.6582]
[1739634902649,9.14600892,194.3,194.27,5.1465]
[1739634903155,14.29190892,194.3,194.26,5.1469]